[Event "Early-Titled-Tuesday-Blitz-January-30-2024"]
[Site "Chess.com"]
[Date "2024.01.30"]
[Round "5"]
[White "Kostukov_Alex"]
[Black "santosalberto1987"]
[Result "0-1"]
[WhiteElo "2307"]
[BlackElo "2522"]
[TimeControl "180+1"]
[EndTime "8:56:19 PST"]
[Termination "santosalberto1987 won on time"]

1. g3 {[%clk 0:02:56.4]} 1... Nf6 {[%clk 0:02:58.7]} 2. Bg2 {[%clk 0:02:56.7]}
2... e5 {[%clk 0:02:58.8]} 3. c4 {[%clk 0:02:56.4]} 3... Nc6 {[%clk 0:02:57.3]}
4. Nf3 {[%clk 0:02:56.7]} 4... e4 {[%clk 0:02:56.9]} 5. Ng5 {[%clk 0:02:56.5]}
5... d5 {[%clk 0:02:54.4]} 6. cxd5 {[%clk 0:02:51.3]} 6... Qxd5 {[%clk
0:02:55.3]} 7. d3 {[%clk 0:02:45.1]} 7... Bb4+ {[%clk 0:02:53.3]} 8. Nc3 {[%clk
0:02:43.4]} 8... Qa5 {[%clk 0:02:41.3]} 9. Nxe4 {[%clk 0:02:24.8]} 9... Nxe4
{[%clk 0:02:40.9]} 10. Bxe4 {[%clk 0:02:22.1]} 10... Bh3 {[%clk 0:02:35.3]} 11.
Bd2 {[%clk 0:02:13.9]} 11... O-O {[%clk 0:02:31.9]} 12. Rg1 {[%clk 0:02:05.4]}
12... f5 {[%clk 0:02:27.6]} 13. Bd5+ {[%clk 0:01:59.8]} 13... Kh8 {[%clk
0:02:26.6]} 14. Bxc6 {[%clk 0:01:20.8]} 14... bxc6 {[%clk 0:02:25.8]} 15. a3
{[%clk 0:01:20.6]} 15... Bd6 {[%clk 0:02:18]} 16. Qa4 {[%clk 0:01:19.4]} 16...
Qb6 {[%clk 0:02:12.6]} 17. Rb1 {[%clk 0:01:01.8]} 17... Bg4 {[%clk 0:02:06.7]}
18. Be3 {[%clk 0:00:40.9]} 18... Bc5 {[%clk 0:02:02.3]} 19. Bxc5 {[%clk
0:00:36.9]} 19... Qxc5 {[%clk 0:02:03.2]} 20. Qc4 {[%clk 0:00:32.3]} 20... Qe7
{[%clk 0:02:00.5]} 21. Kd2 {[%clk 0:00:24.8]} 21... Rfe8 {[%clk 0:01:57.8]} 22.
f3 {[%clk 0:00:19.9]} 22... Bh5 {[%clk 0:01:55.2]} 23. e4 {[%clk 0:00:13.8]}
23... Bxf3 {[%clk 0:01:52.3]} 24. Rbe1 {[%clk 0:00:13.4]} 24... fxe4 {[%clk
0:01:51.1]} 25. Nxe4 {[%clk 0:00:13.3]} 25... Rad8 {[%clk 0:01:47.3]} 26. Kc2
{[%clk 0:00:07.9]} 26... Rd5 {[%clk 0:01:41.1]} 27. b4 {[%clk 0:00:04.6]} 27...
Re5 {[%clk 0:01:35.6]} 28. h4 {[%clk 0:00:01.8]} 28... a5 {[%clk 0:01:35.2]} 29.
Ng5 {[%clk 0:00:01.4]} 29... Bd5 {[%clk 0:01:30.2]} 0-1

[Event "Early-Titled-Tuesday-Blitz-January-30-2024"]
[Site "Chess.com"]
[Date "2024.01.30"]
[Round "5"]
[White "jens1102"]
[Black "LileKoridze"]
[Result "1-0"]
[WhiteElo "2578"]
[BlackElo "2362"]
[TimeControl "180+1"]
[EndTime "8:56:23 PST"]
[Termination "jens1102 won by resignation"]

1. e4 {[%clk 0:03:00]} 1... c5 {[%clk 0:03:00]} 2. Nf3 {[%clk 0:03:00.2]} 2...
d6 {[%clk 0:03:00.2]} 3. d4 {[%clk 0:03:00.5]} 3... cxd4 {[%clk 0:03:00.7]} 4.
Nxd4 {[%clk 0:03:01.4]} 4... Nf6 {[%clk 0:03:01]} 5. Nc3 {[%clk 0:03:01.9]} 5...
a6 {[%clk 0:03:01.6]} 6. f3 {[%clk 0:03:01.5]} 6... e5 {[%clk 0:02:58.6]} 7. Nb3
{[%clk 0:03:01.6]} 7... Be6 {[%clk 0:02:58.3]} 8. Be3 {[%clk 0:03:01]} 8... Nbd7
{[%clk 0:02:58.7]} 9. Qd2 {[%clk 0:03:01]} 9... h5 {[%clk 0:02:58]} 10. O-O-O
{[%clk 0:03:01.4]} 10... b5 {[%clk 0:02:58.2]} 11. Nd5 {[%clk 0:03:01.7]} 11...
Nxd5 {[%clk 0:02:52]} 12. exd5 {[%clk 0:03:02.6]} 12... Bf5 {[%clk 0:02:52.5]}
13. Kb1 {[%clk 0:02:52.9]} 13... Be7 {[%clk 0:02:49.5]} 14. Bd3 {[%clk
0:02:51.5]} 14... Bxd3 {[%clk 0:02:48.6]} 15. Qxd3 {[%clk 0:02:52.4]} 15... Qc7
{[%clk 0:02:46.5]} 16. Rhe1 {[%clk 0:02:37.7]} 16... O-O {[%clk 0:02:44.1]} 17.
f4 {[%clk 0:02:36.3]} 17... exf4 {[%clk 0:02:42]} 18. Bxf4 {[%clk 0:02:36.3]}
18... Bf6 {[%clk 0:02:39.4]} 19. Nd4 {[%clk 0:02:22]} 19... Be5 {[%clk
0:02:26.4]} 20. Bxe5 {[%clk 0:02:19.5]} 20... Nxe5 {[%clk 0:02:25.9]} 21. Qh3
{[%clk 0:02:17]} 21... g6 {[%clk 0:02:24.2]} 22. Re3 {[%clk 0:01:57.7]} 22...
Rac8 {[%clk 0:02:16.3]} 23. c3 {[%clk 0:01:51.7]} 23... b4 {[%clk 0:01:28.5]}
24. cxb4 {[%clk 0:01:38.8]} 24... Qc4 {[%clk 0:01:28.2]} 25. a3 {[%clk
0:01:35.9]} 25... Qxd5 {[%clk 0:01:27.9]} 26. Qg3 {[%clk 0:01:25.7]} 26... Ng4
{[%clk 0:01:14.8]} 27. Ree1 {[%clk 0:01:19.2]} 27... Rfe8 {[%clk 0:01:09.2]} 28.
Rxe8+ {[%clk 0:01:09.7]} 28... Rxe8 {[%clk 0:01:08.6]} 29. Qf3 {[%clk
0:01:09.7]} 29... Qxf3 {[%clk 0:01:02.7]} 30. Nxf3 {[%clk 0:01:08.5]} 30... Re2
{[%clk 0:00:56.5]} 31. Rxd6 {[%clk 0:01:07.4]} 31... Rxg2 {[%clk 0:00:56.7]} 32.
Rxa6 {[%clk 0:01:07.4]} 32... Rf2 {[%clk 0:00:57.2]} 33. b5 {[%clk 0:01:00]}
33... Rxf3 {[%clk 0:00:57.2]} 34. b6 {[%clk 0:01:00.7]} 34... Rb3 {[%clk
0:00:57.3]} 35. Ka2 {[%clk 0:01:01.4]} 35... Rb5 {[%clk 0:00:55.2]} 36. a4
{[%clk 0:01:01.7]} 36... Rb4 {[%clk 0:00:51.7]} 37. Ka3 {[%clk 0:01:01.7]} 37...
Re4 {[%clk 0:00:47.7]} 38. b7 {[%clk 0:01:01.2]} 38... Re8 {[%clk 0:00:47.3]}
39. Ra8 {[%clk 0:01:01]} 1-0

[Event "Early-Titled-Tuesday-Blitz-January-30-2024"]
[Site "Chess.com"]
[Date "2024.01.30"]
[Round "5"]
[White "levallem"]
[Black "NtcPou"]
[Result "1-0"]
[WhiteElo "2351"]
[BlackElo "2056"]
[TimeControl "180+1"]
[EndTime "8:56:27 PST"]
[Termination "levallem won by resignation"]

1. d4 {[%clk 0:03:00.9]} 1... d5 {[%clk 0:02:57.2]} 2. Nf3 {[%clk 0:02:59.6]}
2... c6 {[%clk 0:02:55.2]} 3. e3 {[%clk 0:02:59.6]} 3... Bf5 {[%clk 0:02:50.4]}
4. Bd3 {[%clk 0:03:00]} 4... Bxd3 {[%clk 0:02:49.4]} 5. Qxd3 {[%clk 0:03:00.9]}
5... Nf6 {[%clk 0:02:49.3]} 6. O-O {[%clk 0:03:01.5]} 6... Nbd7 {[%clk
0:02:47.8]} 7. Nbd2 {[%clk 0:03:02]} 7... e6 {[%clk 0:02:47.7]} 8. b3 {[%clk
0:03:02.4]} 8... Bd6 {[%clk 0:02:46.2]} 9. Bb2 {[%clk 0:03:02.6]} 9... O-O
{[%clk 0:02:45.8]} 10. Ne5 {[%clk 0:03:01.2]} 10... Qe7 {[%clk 0:02:33.2]} 11.
f4 {[%clk 0:03:00.2]} 11... Ba3 {[%clk 0:02:27.8]} 12. Bxa3 {[%clk 0:02:56.5]}
12... Qxa3 {[%clk 0:02:26.2]} 13. Nxd7 {[%clk 0:02:55.3]} 13... Nxd7 {[%clk
0:02:24.7]} 14. e4 {[%clk 0:02:55.4]} 14... dxe4 {[%clk 0:02:12.6]} 15. Nxe4
{[%clk 0:02:56.3]} 15... Qe7 {[%clk 0:02:07.6]} 16. Ng5 {[%clk 0:02:52.7]} 16...
Nf6 {[%clk 0:02:03.8]} 17. Rae1 {[%clk 0:02:52.5]} 17... h6 {[%clk 0:02:02.5]}
18. Nf3 {[%clk 0:02:47.8]} 18... Qd6 {[%clk 0:01:54.8]} 19. f5 {[%clk
0:02:45.2]} 19... exf5 {[%clk 0:01:47.4]} 20. Qxf5 {[%clk 0:02:42.8]} 20... Rfe8
{[%clk 0:01:38.5]} 21. Re5 {[%clk 0:02:42]} 21... Nd7 {[%clk 0:01:10.3]} 22.
Rxe8+ {[%clk 0:02:37.4]} 22... Rxe8 {[%clk 0:01:09.4]} 23. c3 {[%clk 0:02:33]}
23... Re2 {[%clk 0:00:50.8]} 24. Ng5 {[%clk 0:02:23.3]} 24... Nf6 {[%clk
0:00:50.6]} 25. Qc8+ {[%clk 0:01:54.8]} 25... Re8 {[%clk 0:00:47.8]} 26. Rxf6
{[%clk 0:01:53.2]} 26... Rxc8 {[%clk 0:00:38.3]} 27. Rxd6 {[%clk 0:01:52.5]}
27... hxg5 {[%clk 0:00:38.9]} 28. Rd7 {[%clk 0:01:53]} 28... Rb8 {[%clk
0:00:38.4]} 29. Kf2 {[%clk 0:01:52.5]} 29... g6 {[%clk 0:00:38.3]} 30. Ke3
{[%clk 0:01:51.6]} 30... Kg7 {[%clk 0:00:38.7]} 31. c4 {[%clk 0:01:45.6]} 31...
a5 {[%clk 0:00:35.6]} 32. Kd3 {[%clk 0:01:44.9]} 32... b5 {[%clk 0:00:30.6]} 33.
c5 {[%clk 0:01:42.4]} 33... a4 {[%clk 0:00:29]} 34. Rc7 {[%clk 0:01:42.2]} 34...
axb3 {[%clk 0:00:28.7]} 35. axb3 {[%clk 0:01:42.8]} 35... Re8 {[%clk 0:00:18.5]}
36. Rxc6 {[%clk 0:01:39.9]} 36... Re1 {[%clk 0:00:19.4]} 37. d5 {[%clk
0:01:34.4]} 37... Kf8 {[%clk 0:00:16.2]} 38. d6 {[%clk 0:01:33.3]} 38... Ke8
{[%clk 0:00:15.5]} 39. Rc8+ {[%clk 0:01:31.9]} 39... Kd7 {[%clk 0:00:15.7]} 40.
Rc7+ {[%clk 0:01:32.8]} 40... Ke6 {[%clk 0:00:15.5]} 41. Re7+ {[%clk 0:01:32.1]}
1-0

[Event "Early-Titled-Tuesday-Blitz-January-30-2024"]
[Site "Chess.com"]
[Date "2024.01.30"]
[Round "5"]
[White "cycygogne"]
[Black "tusplingher"]
[Result "0-1"]
[WhiteElo "2281"]
[BlackElo "2468"]
[TimeControl "180+1"]
[EndTime "8:56:28 PST"]
[Termination "tusplingher won by resignation"]

1. Nf3 {[%clk 0:03:00.9]} 1... Nf6 {[%clk 0:02:59.1]} 2. b3 {[%clk 0:03:00.6]}
2... b6 {[%clk 0:02:58.6]} 3. Bb2 {[%clk 0:03:00.5]} 3... Bb7 {[%clk 0:02:59.3]}
4. e3 {[%clk 0:02:59.7]} 4... e6 {[%clk 0:02:56]} 5. Bd3 {[%clk 0:02:57.8]} 5...
c5 {[%clk 0:02:48.6]} 6. O-O {[%clk 0:02:56.9]} 6... d6 {[%clk 0:02:44.7]} 7. a4
{[%clk 0:02:50.4]} 7... Nbd7 {[%clk 0:02:40.6]} 8. Na3 {[%clk 0:02:38.7]} 8...
a6 {[%clk 0:02:38.2]} 9. Re1 {[%clk 0:02:30.8]} 9... Be7 {[%clk 0:02:36.9]} 10.
e4 {[%clk 0:02:30]} 10... O-O {[%clk 0:02:34.3]} 11. e5 {[%clk 0:02:29.8]} 11...
Bxf3 {[%clk 0:02:04.3]} 12. Qxf3 {[%clk 0:02:26.4]} 12... Nxe5 {[%clk
0:02:04.1]} 13. Bxe5 {[%clk 0:02:14.4]} 13... dxe5 {[%clk 0:02:05]} 14. Nc4
{[%clk 0:02:07.5]} 14... e4 {[%clk 0:01:56.4]} 15. Bxe4 {[%clk 0:02:07.3]} 15...
Nxe4 {[%clk 0:01:56.4]} 16. Rxe4 {[%clk 0:02:06.1]} 16... Bf6 {[%clk 0:01:50.4]}
17. Rae1 {[%clk 0:02:03.7]} 17... b5 {[%clk 0:01:48.8]} 18. Ne5 {[%clk
0:01:53.9]} 18... Bxe5 {[%clk 0:01:24.3]} 19. Rxe5 {[%clk 0:01:53.2]} 19... Qxd2
{[%clk 0:01:23]} 20. h4 {[%clk 0:01:48.3]} 20... Qxc2 {[%clk 0:01:18.8]} 21. h5
{[%clk 0:01:40.7]} 21... h6 {[%clk 0:01:15.2]} 22. Qb7 {[%clk 0:01:36.6]} 22...
Qxb3 {[%clk 0:01:06]} 23. Rxc5 {[%clk 0:01:36.5]} 23... Qxa4 {[%clk 0:01:00.9]}
24. Rc7 {[%clk 0:01:33.6]} 24... b4 {[%clk 0:00:50.7]} 25. Rxe6 {[%clk 0:01:30]}
25... Qd1+ {[%clk 0:00:42.4]} 26. Kh2 {[%clk 0:01:29.7]} 26... Qxh5+ {[%clk
0:00:38]} 27. Kg1 {[%clk 0:01:29.1]} 27... Rfb8 {[%clk 0:00:18.9]} 28. Qc6
{[%clk 0:01:22.3]} 28... fxe6 {[%clk 0:00:18.1]} 29. Qd7 {[%clk 0:01:22.9]}
29... Qg6 {[%clk 0:00:17]} 30. Rc6 {[%clk 0:01:21.2]} 30... b3 {[%clk
0:00:15.5]} 31. Rxe6 {[%clk 0:01:21.2]} 31... Qf7 {[%clk 0:00:12.8]} 32. Re7
{[%clk 0:01:21.4]} 32... Qg6 {[%clk 0:00:10.2]} 33. Re6 {[%clk 0:01:20.9]} 33...
b2 {[%clk 0:00:10.7]} 34. Rxg6 {[%clk 0:01:20.3]} 34... b1=Q+ {[%clk 0:00:11.2]}
35. Kh2 {[%clk 0:01:21]} 35... Qxg6 {[%clk 0:00:11.9]} 0-1

[Event "Early-Titled-Tuesday-Blitz-January-30-2024"]
[Site "Chess.com"]
[Date "2024.01.30"]
[Round "5"]
[White "andrzej"]
[Black "Incognito_Knight"]
[Result "1-0"]
[WhiteElo "2451"]
[BlackElo "2722"]
[TimeControl "180+1"]
[EndTime "8:56:29 PST"]
[Termination "andrzej won on time"]

1. e4 {[%clk 0:02:48.8]} 1... c5 {[%clk 0:02:58.2]} 2. Nf3 {[%clk 0:02:48.6]}
2... e6 {[%clk 0:02:56.7]} 3. d4 {[%clk 0:02:47]} 3... cxd4 {[%clk 0:02:57.6]}
4. Nxd4 {[%clk 0:02:47]} 4... a6 {[%clk 0:02:58.1]} 5. c4 {[%clk 0:02:46.4]}
5... Nf6 {[%clk 0:02:57.8]} 6. Nc3 {[%clk 0:02:46]} 6... Qc7 {[%clk 0:02:58.3]}
7. a3 {[%clk 0:02:43.5]} 7... b6 {[%clk 0:02:58.5]} 8. Bd3 {[%clk 0:02:29.5]}
8... Bb7 {[%clk 0:02:56]} 9. O-O {[%clk 0:02:27.5]} 9... Bd6 {[%clk 0:02:43]}
10. f4 {[%clk 0:02:08.3]} 10... Bc5 {[%clk 0:02:37.6]} 11. Be3 {[%clk
0:02:05.6]} 11... e5 {[%clk 0:02:32.7]} 12. fxe5 {[%clk 0:02:05.2]} 12... Qxe5
{[%clk 0:02:32.9]} 13. Rf5 {[%clk 0:01:47.2]} 13... Qe7 {[%clk 0:02:22.6]} 14.
Rxc5 {[%clk 0:01:41.3]} 14... Qxc5 {[%clk 0:01:11.9]} 15. Nf5 {[%clk 0:01:36.4]}
15... Qc7 {[%clk 0:00:45.9]} 16. Nxg7+ {[%clk 0:01:21.3]} 16... Kf8 {[%clk
0:00:41.7]} 17. Qf3 {[%clk 0:01:15.8]} 17... Qe5 {[%clk 0:00:12.6]} 18. Nf5
{[%clk 0:01:11]} 18... h5 {[%clk 0:00:09.1]} 19. Bd4 {[%clk 0:01:08.9]} 19...
Qe6 {[%clk 0:00:08.8]} 20. Nd5 {[%clk 0:00:58.4]} 1-0

[Event "Early-Titled-Tuesday-Blitz-January-30-2024"]
[Site "Chess.com"]
[Date "2024.01.30"]
[Round "5"]
[White "djano"]
[Black "sjoerd893"]
[Result "0-1"]
[WhiteElo "2686"]
[BlackElo "2508"]
[TimeControl "180+1"]
[EndTime "8:56:31 PST"]
[Termination "sjoerd893 won on time"]

1. e4 {[%clk 0:03:00.9]} 1... c5 {[%clk 0:02:59.3]} 2. Nc3 {[%clk 0:03:00.6]}
2... Nc6 {[%clk 0:02:58.4]} 3. Bb5 {[%clk 0:03:00.3]} 3... Nd4 {[%clk
0:02:55.7]} 4. Nf3 {[%clk 0:03:00.5]} 4... Nxb5 {[%clk 0:02:53.3]} 5. Nxb5
{[%clk 0:03:01.4]} 5... a6 {[%clk 0:02:52.4]} 6. Nc3 {[%clk 0:03:01.7]} 6... d6
{[%clk 0:02:51.3]} 7. d4 {[%clk 0:02:59.4]} 7... cxd4 {[%clk 0:02:46.8]} 8. Qxd4
{[%clk 0:03:00.3]} 8... Nf6 {[%clk 0:02:42.8]} 9. Bg5 {[%clk 0:02:56.4]} 9... e5
{[%clk 0:02:40.1]} 10. Qb4 {[%clk 0:02:50]} 10... d5 {[%clk 0:02:28.4]} 11. Qb3
{[%clk 0:02:46.3]} 11... d4 {[%clk 0:02:25.6]} 12. Nxe5 {[%clk 0:02:39.9]} 12...
Be6 {[%clk 0:02:17.6]} 13. Qxb7 {[%clk 0:02:21]} 13... dxc3 {[%clk 0:02:10]} 14.
Qc6+ {[%clk 0:02:12.2]} 14... Ke7 {[%clk 0:01:55.8]} 15. Qb7+ {[%clk 0:01:45]}
15... Ke8 {[%clk 0:01:50.6]} 16. Qc6+ {[%clk 0:01:03.9]} 16... Ke7 {[%clk
0:01:50.1]} 17. O-O {[%clk 0:00:30.6]} 17... Rc8 {[%clk 0:01:37.2]} 18. Qb7+
{[%clk 0:00:29.9]} 18... Qc7 {[%clk 0:01:31.2]} 19. Qb4+ {[%clk 0:00:20.2]}
19... Qc5 {[%clk 0:01:28.6]} 20. Qb7+ {[%clk 0:00:17.7]} 20... Rc7 {[%clk
0:01:28.6]} 21. Qb8 {[%clk 0:00:11]} 21... Qxe5 {[%clk 0:01:27.9]} 22. bxc3
{[%clk 0:00:05.5]} 22... h6 {[%clk 0:01:16.2]} 23. Be3 {[%clk 0:00:04.2]} 23...
Nd7 {[%clk 0:01:06.7]} 24. Qa8 {[%clk 0:00:01.8]} 24... Qd6 {[%clk 0:01:05]} 25.
e5 {[%clk 0:00:01.5]} 25... Qc6 {[%clk 0:01:05.3]} 0-1

[Event "Early-Titled-Tuesday-Blitz-January-30-2024"]
[Site "Chess.com"]
[Date "2024.01.30"]
[Round "5"]
[White "Grandelicious"]
[Black "ChessSwole"]
[Result "1-0"]
[WhiteElo "2907"]
[BlackElo "2624"]
[TimeControl "180+1"]
[EndTime "8:56:34 PST"]
[Termination "Grandelicious won by resignation"]

1. Nf3 {[%clk 0:03:00.9]} 1... Nf6 {[%clk 0:02:57]} 2. c4 {[%clk 0:03:00.2]}
2... e6 {[%clk 0:02:55.2]} 3. b3 {[%clk 0:02:57.6]} 3... d5 {[%clk 0:02:54.6]}
4. Bb2 {[%clk 0:02:57.1]} 4... Be7 {[%clk 0:02:54]} 5. g3 {[%clk 0:02:54]} 5...
O-O {[%clk 0:02:53.9]} 6. Bg2 {[%clk 0:02:54.7]} 6... c5 {[%clk 0:02:53.2]} 7.
cxd5 {[%clk 0:02:54.9]} 7... Nxd5 {[%clk 0:02:54.1]} 8. O-O {[%clk 0:02:53.3]}
8... Bf6 {[%clk 0:02:52]} 9. Qc1 {[%clk 0:02:35.4]} 9... b6 {[%clk 0:02:46.6]}
10. d4 {[%clk 0:02:29.8]} 10... cxd4 {[%clk 0:02:34.2]} 11. Nxd4 {[%clk
0:02:28.1]} 11... Bb7 {[%clk 0:02:33.5]} 12. e4 {[%clk 0:02:26.4]} 12... Nb4
{[%clk 0:02:32.6]} 13. Rd1 {[%clk 0:02:26.4]} 13... Qc8 {[%clk 0:02:21]} 14.
Qxc8 {[%clk 0:02:05.4]} 14... Rxc8 {[%clk 0:02:21.9]} 15. e5 {[%clk 0:02:05.6]}
15... Bxg2 {[%clk 0:02:21.4]} 16. exf6 {[%clk 0:02:06.1]} 16... Bb7 {[%clk
0:01:54.4]} 17. fxg7 {[%clk 0:02:06]} 17... N8c6 {[%clk 0:01:40.3]} 18. Nxc6
{[%clk 0:01:45.6]} 18... Bxc6 {[%clk 0:01:38]} 19. Nc3 {[%clk 0:01:35.8]} 19...
f6 {[%clk 0:01:34]} 20. a3 {[%clk 0:01:34.4]} 20... Na6 {[%clk 0:01:30.9]} 21.
Rd6 {[%clk 0:01:21.9]} 21... Kf7 {[%clk 0:01:02.2]} 22. g8=Q+ {[%clk 0:01:09.8]}
22... Kxg8 {[%clk 0:01:00.9]} 23. Rxe6 {[%clk 0:01:09.9]} 23... Nc5 {[%clk
0:00:59.4]} 24. Rxf6 {[%clk 0:01:08.8]} 24... Nxb3 {[%clk 0:00:59.9]} 25. Rd1
{[%clk 0:01:06.7]} 25... Nc5 {[%clk 0:00:40.9]} 26. Rd4 {[%clk 0:01:05.7]} 26...
Be8 {[%clk 0:00:39.8]} 27. Nd5 {[%clk 0:00:58.6]} 27... Bg6 {[%clk 0:00:20]} 28.
Ne7+ {[%clk 0:00:56.6]} 28... Kg7 {[%clk 0:00:20.3]} 29. Rxg6+ {[%clk 0:00:55]}
29... hxg6 {[%clk 0:00:19.7]} 30. Nxc8 {[%clk 0:00:55.7]} 1-0

[Event "Early-Titled-Tuesday-Blitz-January-30-2024"]
[Site "Chess.com"]
[Date "2024.01.30"]
[Round "5"]
[White "nindjaxx8"]
[Black "elchacal664"]
[Result "0-1"]
[WhiteElo "2587"]
[BlackElo "2371"]
[TimeControl "180+1"]
[EndTime "8:56:37 PST"]
[Termination "elchacal664 won on time"]

1. d4 {[%clk 0:03:00.5]} 1... Nf6 {[%clk 0:02:59.5]} 2. c4 {[%clk 0:03:01]} 2...
g6 {[%clk 0:02:59.3]} 3. Nc3 {[%clk 0:03:01.5]} 3... d5 {[%clk 0:02:59.6]} 4.
Bf4 {[%clk 0:02:59.4]} 4... Bg7 {[%clk 0:02:59]} 5. e3 {[%clk 0:02:59.9]} 5...
O-O {[%clk 0:02:58.7]} 6. Nf3 {[%clk 0:03:00.5]} 6... c5 {[%clk 0:02:57.3]} 7.
Be2 {[%clk 0:03:00.8]} 7... cxd4 {[%clk 0:02:55.6]} 8. exd4 {[%clk 0:03:01.3]}
8... dxc4 {[%clk 0:02:55.4]} 9. O-O {[%clk 0:03:00.9]} 9... Nd5 {[%clk
0:02:50.3]} 10. Be3 {[%clk 0:02:57.9]} 10... Nb6 {[%clk 0:02:48.6]} 11. a4
{[%clk 0:02:55.2]} 11... a5 {[%clk 0:02:43.7]} 12. Qc2 {[%clk 0:02:53.2]} 12...
Nc6 {[%clk 0:02:41.3]} 13. Rad1 {[%clk 0:02:45.9]} 13... Bf5 {[%clk 0:02:39.7]}
14. Qc1 {[%clk 0:02:46.1]} 14... Nb4 {[%clk 0:02:34.5]} 15. Ne5 {[%clk 0:02:35]}
15... Rc8 {[%clk 0:02:31.9]} 16. h4 {[%clk 0:02:11.8]} 16... Nd3 {[%clk
0:02:19.8]} 17. Nxd3 {[%clk 0:01:58.6]} 17... cxd3 {[%clk 0:02:20.6]} 18. Bxd3
{[%clk 0:01:59.5]} 18... Bxd3 {[%clk 0:02:19.6]} 19. Rxd3 {[%clk 0:02:00.4]}
19... Nxa4 {[%clk 0:02:18.3]} 20. h5 {[%clk 0:02:00.6]} 20... Nxc3 {[%clk
0:02:18]} 21. bxc3 {[%clk 0:02:00.6]} 21... Qd5 {[%clk 0:02:16]} 22. h6 {[%clk
0:01:57.4]} 22... Bf6 {[%clk 0:02:15.5]} 23. Qa3 {[%clk 0:01:57.3]} 23... Rc4
{[%clk 0:02:12.6]} 24. Rb1 {[%clk 0:01:53.8]} 24... Rfc8 {[%clk 0:02:08.9]} 25.
Rb6 {[%clk 0:01:43.7]} 25... Qf5 {[%clk 0:01:59.4]} 26. Rd1 {[%clk 0:01:35.9]}
26... Rxc3 {[%clk 0:01:57.6]} 27. Qa4 {[%clk 0:01:32.6]} 27... R3c7 {[%clk
0:01:49.5]} 28. Rdb1 {[%clk 0:01:28.7]} 28... Bg5 {[%clk 0:01:47.2]} 29. R6b5
{[%clk 0:01:27.2]} 29... e5 {[%clk 0:01:26.7]} 30. Qa1 {[%clk 0:00:04]} 30...
Bxe3 {[%clk 0:01:25.7]} 31. fxe3 {[%clk 0:00:04.9]} 31... Rc2 {[%clk 0:01:22.5]}
32. Rf1 {[%clk 0:00:03.5]} 32... Qg5 {[%clk 0:01:22.5]} 0-1

[Event "Early-Titled-Tuesday-Blitz-January-30-2024"]
[Site "Chess.com"]
[Date "2024.01.30"]
[Round "5"]
[White "OneTrickPony_82"]
[Black "RaulPerezGuerra"]
[Result "0-1"]
[WhiteElo "2512"]
[BlackElo "2421"]
[TimeControl "180+1"]
[EndTime "8:56:39 PST"]
[Termination "RaulPerezGuerra won by resignation"]

1. d4 {[%clk 0:03:00.9]} 1... d5 {[%clk 0:02:58.5]} 2. c4 {[%clk 0:03:00.9]}
2... e5 {[%clk 0:02:59]} 3. dxe5 {[%clk 0:03:00.1]} 3... d4 {[%clk 0:02:59.9]}
4. Nf3 {[%clk 0:02:59.8]} 4... Nc6 {[%clk 0:03:00.4]} 5. Nbd2 {[%clk 0:02:59.4]}
5... Nge7 {[%clk 0:02:58.3]} 6. h4 {[%clk 0:02:57.5]} 6... Ng6 {[%clk
0:02:57.2]} 7. Nb3 {[%clk 0:02:52.2]} 7... Ngxe5 {[%clk 0:02:55]} 8. Nxe5 {[%clk
0:02:47.2]} 8... Nxe5 {[%clk 0:02:55.9]} 9. Qxd4 {[%clk 0:02:46.6]} 9... Qxd4
{[%clk 0:02:54.1]} 10. Nxd4 {[%clk 0:02:46.8]} 10... Nxc4 {[%clk 0:02:54.3]} 11.
a3 {[%clk 0:02:40.7]} 11... Bc5 {[%clk 0:02:50.4]} 12. Nb5 {[%clk 0:02:34]}
12... Bb6 {[%clk 0:02:47.1]} 13. e3 {[%clk 0:02:31.7]} 13... Ne5 {[%clk
0:02:46]} 14. b4 {[%clk 0:02:22.1]} 14... Bf5 {[%clk 0:02:43.8]} 15. Nd4 {[%clk
0:01:48.5]} 15... Bxd4 {[%clk 0:02:34.1]} 16. exd4 {[%clk 0:01:48.4]} 16... Nd3+
{[%clk 0:02:18.7]} 17. Bxd3 {[%clk 0:01:48.3]} 17... Bxd3 {[%clk 0:02:19.6]} 18.
Be3 {[%clk 0:01:47.7]} 18... Kd7 {[%clk 0:02:16.6]} 19. Kd2 {[%clk 0:01:47.8]}
19... Be4 {[%clk 0:02:15.4]} 20. f3 {[%clk 0:01:47]} 20... Bd5 {[%clk
0:02:15.9]} 21. Rac1 {[%clk 0:01:40.9]} 21... h5 {[%clk 0:02:15.2]} 22. Rhe1
{[%clk 0:01:39.6]} 22... Rhe8 {[%clk 0:02:14]} 23. Bf4 {[%clk 0:01:39.5]} 23...
c6 {[%clk 0:02:13.1]} 24. Be5 {[%clk 0:01:35.8]} 24... f6 {[%clk 0:02:10.9]} 25.
Bf4 {[%clk 0:01:36.1]} 25... a5 {[%clk 0:02:09.6]} 26. Rxe8 {[%clk 0:01:35.1]}
26... Kxe8 {[%clk 0:02:09.3]} 27. b5 {[%clk 0:01:21.1]} 27... cxb5 {[%clk
0:01:59.7]} 28. Rc7 {[%clk 0:01:20.5]} 28... b4 {[%clk 0:01:33.5]} 29. axb4
{[%clk 0:01:04]} 29... axb4 {[%clk 0:01:34.4]} 30. Rxg7 {[%clk 0:00:53]} 30...
Ra2+ {[%clk 0:01:31.4]} 31. Kd3 {[%clk 0:00:52.6]} 31... b3 {[%clk 0:01:30.4]}
32. Rc7 {[%clk 0:00:15.4]} 32... Rxg2 {[%clk 0:01:25.2]} 33. Rc1 {[%clk
0:00:12.7]} 33... b2 {[%clk 0:01:23.8]} 34. Re1+ {[%clk 0:00:09.3]} 34... Kd7
{[%clk 0:01:18.9]} 35. Kc3 {[%clk 0:00:09.7]} 35... Ba2 {[%clk 0:01:17.5]} 0-1

[Event "Early-Titled-Tuesday-Blitz-January-30-2024"]
[Site "Chess.com"]
[Date "2024.01.30"]
[Round "5"]
[White "viktorgen2021"]
[Black "elgrona"]
[Result "1-0"]
[WhiteElo "2571"]
[BlackElo "2306"]
[TimeControl "180+1"]
[EndTime "8:56:43 PST"]
[Termination "viktorgen2021 won by resignation"]

1. d4 {[%clk 0:02:51.8]} 1... d5 {[%clk 0:02:59.7]} 2. c4 {[%clk 0:02:51.2]}
2... c6 {[%clk 0:02:59.8]} 3. Nf3 {[%clk 0:02:49.9]} 3... Nf6 {[%clk 0:02:59.7]}
4. e3 {[%clk 0:02:46.1]} 4... e6 {[%clk 0:02:56.7]} 5. Nbd2 {[%clk 0:02:44.4]}
5... Bd6 {[%clk 0:02:55.2]} 6. Bd3 {[%clk 0:02:44.6]} 6... O-O {[%clk
0:02:50.3]} 7. O-O {[%clk 0:02:44.8]} 7... Nbd7 {[%clk 0:02:47.4]} 8. e4 {[%clk
0:02:44.9]} 8... e5 {[%clk 0:02:30.6]} 9. exd5 {[%clk 0:02:34.6]} 9... cxd5
{[%clk 0:02:10.9]} 10. cxd5 {[%clk 0:02:34.2]} 10... exd4 {[%clk 0:01:42.7]} 11.
Ne4 {[%clk 0:02:31.4]} 11... Nc5 {[%clk 0:01:20.2]} 12. Nxf6+ {[%clk 0:02:18.7]}
12... Qxf6 {[%clk 0:00:55.8]} 13. Bg5 {[%clk 0:02:14.3]} 13... Bxh2+ {[%clk
0:00:54]} 14. Kxh2 {[%clk 0:02:10.4]} 14... Qd6+ {[%clk 0:00:53.4]} 15. Kg1
{[%clk 0:02:04.6]} 15... Qxd5 {[%clk 0:00:51.1]} 16. Be7 {[%clk 0:01:53.6]}
16... Re8 {[%clk 0:00:42.5]} 17. Bxc5 {[%clk 0:01:47.8]} 17... Qxc5 {[%clk
0:00:43.4]} 18. Rc1 {[%clk 0:01:47.8]} 18... Qb6 {[%clk 0:00:32.9]} 19. Ng5
{[%clk 0:01:18.2]} 19... Qh6 {[%clk 0:00:24.4]} 20. Rc5 {[%clk 0:00:59]} 20...
b6 {[%clk 0:00:15.4]} 21. Qf3 {[%clk 0:00:50.4]} 21... Bb7 {[%clk 0:00:12.4]}
22. Qxf7+ {[%clk 0:00:45.2]} 22... Kh8 {[%clk 0:00:12.1]} 23. Qxb7 {[%clk
0:00:45.2]} 23... bxc5 {[%clk 0:00:11.8]} 24. Nf7+ {[%clk 0:00:45.5]} 1-0